bitfinex-derivatives/quotes_ETHF0:USTF0_20250403
["timestamp","ask_amount","ask_price","bid_price","bid_amount"]
[1743656394431,4.56943,1836.2,1836.1,1.3691]
[1743656394432,4.56843,1836.2,1836.1,1.3691]
[1743656394825,6.07043,1836.2,1836.1,1.3691]
[1743656397629,1.502,1836.2,1836.1,2.24058]
[1743656397826,1.502,1836.2,1836.1,2.79158943]
[1743656400932,0.00817372,1836.3,1836.1,1.92010943]
[1743656401140,0.00817372,1836.3,1836.2,7.51173943]
[1743656401431,0.00817372,1836.3,1836.2,8.22446356]
[1743656401935,1.46507372,1836.3,1836.2,8.22446356]
[1743656402338,1.46507372,1836.3,1836.2,7.51173943]
[1743656402727,0.00817372,1836.3,1836.2,7.51173943]
[1743656403332,2.33645372,1836.3,1836.2,3.2078]
[1743656403740,1.46507372,1836.3,1836.2,3.2078]
[1743656404440,2.33645372,1836.3,1836.2,3.912]
[1743656404740,1.46507372,1836.3,1836.2,3.912]
[1743656406942,2.33645372,1836.3,1836.2,3.912]
[1743656407442,2.33645372,1836.3,1836.2,3.2078]
[1743656408839,0.87144,1836.2,1836.0,3.2078]
[1743656409036,0.87148,1836.1,1836.0,3.2078]
[1743656409240,5.30588,1836.1,1836.0,3.75911574]
[1743656409436,5.30588,1836.1,1836.0,3.2078]
[1743656409437,6.74448,1836.1,1836.0,3.2078]
[1743656409635,6.74448,1836.1,1836.0,0.55136525]
[1743656410238,0.87152,1836.0,1835.9,0.00817372]
[1743656410443,2.31012,1836.0,1835.9,0.55986498]
[1743656411445,1.4386,1836.0,1835.9,0.55986498]
[1743656413144,2.31012,1836.0,1835.9,0.55986498]
[1743656413445,1.4386,1836.0,1835.9,1.43143498]
[1743656413742,1.4386,1836.0,1835.9,4.35304678]
[1743656414339,3.694,1836.1,1836.0,0.87152]
[1743656414645,2.0976,1836.2,1836.1,0.87148]
[1743656414947,2.0976,1836.2,1836.1,1.42317126]
[1743656415245,2.0976,1836.2,1836.1,2.13718306]
[1743656415441,3.70217372,1836.3,1836.2,0.87143]
[1743656415643,0.00817372,1836.3,1836.2,4.63121631]
[1743656415944,0.00817372,1836.3,1836.2,6.14591631]
[1743656416447,0.00817372,1836.3,1836.2,6.85992811]
[1743656418545,0.00817372,1836.3,1836.2,8.00226669]
[1743656419045,0.00817372,1836.3,1836.2,6.85992811]
[1743656419750,0.00817372,1836.3,1836.2,5.34522811]
[1743656419950,1.39257372,1836.3,1836.2,5.34522811]
[1743656420849,1.39257372,1836.3,1836.2,5.34494783]
[1743656421051,2.89367372,1836.3,1836.2,5.34494783]
[1743656421948,2.89367372,1836.3,1836.2,4.47351783]
[1743656422347,3.76505372,1836.3,1836.2,1.26571783]
[1743656422550,3.76505372,1836.3,1836.2,1.2659006]
[1743656422742,7.45805372,1836.3,1836.2,1.2659006]
[1743656423053,7.45805372,1836.3,1836.0,9.90331]
[1743656423245,1.432,1836.2,1836.1,0.55196]
[1743656423447,1.432,1836.2,1836.1,1.26613459]
[1743656423939,2.30343,1836.2,1836.1,0.55196]
[1743656424951,1.432,1836.2,1836.1,0.55196]
[1743656425452,1.432,1836.2,1836.1,1.42344]
[1743656425640,1.432,1836.2,1836.1,3.53474]
[1743656425847,1.432,1836.2,1836.1,4.24900469]
[1743656426045,5.08557372,1836.3,1836.1,4.24900469]
[1743656426245,6.45347372,1836.3,1836.2,2.70536]
[1743656426952,6.45347372,1836.3,1836.2,2.70547812]
[1743656427254,5.75377372,1836.3,1836.2,6.78470812]
[1743656428142,0.00817372,1836.3,1836.2,6.78470812]
[1743656428544,0.00817372,1836.3,1836.2,7.38103651]
[1743656429250,0.00817372,1836.3,1836.2,9.23773651]
[1743656430152,0.00817372,1836.3,1836.2,9.2372967]
[1743656430355,3.692,1836.5,1836.4,0.87133]
[1743656430647,6.04711,1836.7,1836.5,0.87128]
[1743656430954,6.04711,1836.7,1836.6,0.55162769]
[1743656431150,4.56321,1836.7,1836.6,0.55162769]
[1743656431448,1.3999,1836.8,1836.6,4.63063769]
[1743656431753,1.40807372,1836.8,1836.7,1.42281769]
[1743656432757,1.40807372,1836.8,1836.7,2.91941769]
[1743656432952,0.72437372,1836.8,1836.7,2.91941769]
[1743656433148,0.72437372,1836.8,1836.7,2.04822769]
[1743656434256,0.72437372,1836.8,1836.7,1.4966]
[1743656434660,0.72437372,1836.8,1836.6,3.2078]
[1743656435455,1.59553372,1836.8,1836.6,3.2078]
[1743656435655,0.72437372,1836.8,1836.6,4.07902]
[1743656436760,1.59553372,1836.8,1836.6,4.07902]
[1743656437164,1.59553372,1836.8,1836.6,3.2078]
[1743656437559,0.87119,1836.7,1836.6,3.2078]
[1743656438262,1.59555372,1836.8,1836.6,3.2078]
[1743656439955,0.72437372,1836.8,1836.6,4.07904]
[1743656440463,0.72437372,1836.8,1836.7,0.87119]
[1743656440965,4.41437372,1836.8,1836.7,1.57689]
[1743656441157,4.41437372,1836.8,1836.7,3.62799]
[1743656441768,0.00817372,1836.8,1836.7,3.62799]
[1743656441962,0.00817372,1836.8,1836.7,1.57689]
[1743656442163,0.00817372,1836.8,1836.7,0.87119]
[1743656444162,0.00817372,1836.8,1836.7,2.11683487]
[1743656444366,0.00817372,1836.8,1836.7,4.33463487]
[1743656444864,0.00817372,1836.8,1836.7,3.46344487]
[1743656445366,0.00817372,1836.8,1836.7,4.33463487]
[1743656446964,0.00817372,1836.8,1836.7,5.0472125]
[1743656447470,0.00817372,1836.8,1836.7,4.33463487]
[1743656448269,0.00817372,1836.8,1836.7,7.54243487]
[1743656448665,0.00817372,1836.8,1836.7,7.54248268]
[1743656448864,0.00817372,1836.8,1836.7,8.25497876]
[1743656449471,0.00817372,1836.8,1836.7,7.54248268]
[1743656450669,0.00817372,1836.8,1836.7,7.54248996]
[1743656451875,0.00817372,1836.8,1836.7,8.25495754]
[1743656454575,57.203,1837.5,1836.8,2.17787]
[1743656454877,3.689,1837.3,1837.2,4.07876]
[1743656455069,2.7922,1837.4,1837.3,0.87091]
[1743656455269,1.3825,1837.4,1837.3,2.11612354]
[1743656455470,1.3825,1837.4,1837.3,3.56322354]
[1743656455670,0.00817372,1837.5,1837.4,0.87084]
[1743656455878,0.00817372,1837.5,1837.4,4.62915354]
[1743656456080,0.00817372,1837.5,1837.4,6.80145354]
[1743656456376,0.00817372,1837.5,1837.4,5.93061354]
[1743656456577,0.00817372,1837.5,1837.4,6.80147354]
[1743656457775,0.00817372,1837.5,1837.4,5.93061354]
[1743656457976,0.00817372,1837.5,1837.4,3.75831354]
[1743656457977,0.87898372,1837.5,1837.4,3.75831354]
[1743656458281,2.25151372,1837.5,1837.2,4.08692372]
[1743656458478,0.7102,1837.4,1837.2,4.08692372]
[1743656458683,2.0827,1837.4,1837.2,4.08692372]
[1743656458980,2.0827,1837.4,1837.3,0.87091]
[1743656459380,2.0827,1837.4,1837.2,4.08689372]
[1743656459579,1.433,1837.3,1837.2,4.08689372]
[1743656459785,1.433,1837.3,1837.2,5.34818902]
[1743656459984,1.433,1837.3,1837.2,6.78198902]
[1743656460490,1.433,1837.3,1837.2,4.47726902]
[1743656460794,2.1296,1837.3,1837.2,5.34822902]
[1743656460990,0.00817372,1837.5,1837.4,0.87086]
[1743656461295,0.00817372,1837.5,1837.4,4.62840276]
[1743656461985,0.00817372,1837.5,1837.4,5.33600276]
[1743656462185,0.00817372,1837.5,1837.4,6.75186171]
[1743656463091,1.49057372,1837.5,1837.4,6.04100276]
[1743656463292,0.00817372,1837.5,1837.4,6.04100276]
[1743656464096,0.00817372,1837.5,1837.4,6.75116824]
[1743656464295,4.55769,1837.8,1837.4,6.75116824]
[1743656464296,4.55663,1837.9,1837.4,5.88030824]
[1743656464492,1.4824,1837.8,1837.6,3.2078]
[1743656464696,0.87072,1837.7,1837.6,3.2078]
[1743656465499,0.87072,1837.7,1837.4,4.78623]
[1743656465694,1.49057372,1837.8,1837.2,5.83217372]
[1743656465695,0.87084,1837.5,1837.2,4.08690372]
[1743656465896,1.4207,1837.4,1837.2,4.08690372]
[1743656466089,0.6871,1837.3,1837.2,4.08690372]
[1743656466296,1.4207,1837.4,1837.3,0.87091]
[1743656467001,2.29156,1837.4,1837.2,3.21597372]
[1743656467193,1.59741,1837.3,1837.2,3.21597372]
[1743656467393,5.28341,1837.3,1837.2,3.21597372]
[1743656467792,5.28341,1837.3,1837.2,0.00817372]
[1743656469900,10.1203,1837.3,1836.7,3.2078]
[1743656470100,0.87108,1837.0,1836.7,4.07898]
[1743656470300,2.9711,1836.9,1836.7,4.07898]
[1743656470502,1.5128,1836.8,1836.7,4.07898]
[1743656471598,1.5128,1836.8,1836.6,0.00817372]
[1743656471599,0.87119,1836.7,1836.6,0.00817372]
[1743656471897,4.55719,1836.7,1836.6,0.00817372]
[1743656472101,0.87129,1836.5,1836.3,3.2078]
[1743656472402,6.00813,1836.4,1836.3,3.2078]
[1743656472594,7.52233,1836.4,1836.3,3.2078]
[1743656473300,6.651,1836.4,1836.3,3.2078]
[1743656473800,7.52233,1836.4,1836.3,3.2078]
[1743656474295,7.52233,1836.4,1836.2,0.00817372]
[1743656474501,1.4739,1836.3,1836.2,0.87960372]
[1743656475502,1.4739,1836.3,1836.2,4.08740372]
[1743656475989,3.686,1836.4,1836.2,4.47045008]
[1743656476189,3.686,1836.4,1836.3,2.29038]
[1743656476892,3.686,1836.6,1836.5,0.87129]
[1743656477093,3.686,1836.6,1836.5,4.07909]
[1743656477603,3.686,1836.6,1836.5,5.52519]
[1743656478301,1.4739,1836.7,1836.6,0.87124]
[1743656478498,0.00817372,1836.8,1836.7,0.87119]
[1743656478700,0.00817372,1836.8,1836.7,4.62725158]
[1743656478898,0.00817372,1836.8,1836.7,6.0733496]
[1743656479590,0.00817372,1836.8,1836.7,5.52509]
[1743656479795,0.00817372,1836.8,1836.7,6.78245417]
[1743656481801,1.5059,1837.2,1837.1,0.871]
[1743656482103,1.5059,1837.2,1837.1,4.0788]
[1743656483097,1.5059,1837.2,1837.1,5.5465]
[1743656488408,4.39537372,1837.3,1837.2,0.87096]
[1743656488609,4.39537372,1837.3,1837.2,2.35686]
[1743656489611,4.39537372,1837.3,1837.1,3.2078]
[1743656489804,1.4451,1837.2,1837.1,3.2078]
[1743656491107,1.4451,1837.2,1837.1,4.0788]
[1743656494207,4.39537372,1837.3,1837.2,0.87096]
[1743656494411,3.69317372,1837.3,1837.2,3.05126]
[1743656496308,3.69317372,1837.3,1837.1,4.07877]
[1743656496505,1.4709,1837.2,1837.1,4.07877]
[1743656496710,2.184,1837.2,1837.1,3.2078]
[1743656497012,3.05496,1837.2,1837.1,3.2078]
[1743656497311,2.184,1837.2,1837.1,3.2078]
[1743656498806,2.184,1837.2,1837.1,4.0788]
[1743656499505,1.4709,1837.2,1837.1,4.0788]
[1743656499707,3.69217372,1837.3,1837.2,0.87096]
[1743656499906,0.00817372,1837.3,1837.2,2.38506]
[1743656501108,0.00817372,1837.3,1837.2,0.87096]
[1743656502013,1.38077372,1837.3,1837.2,0.87096]
[1743656502516,5.06377372,1837.3,1837.2,0.87096]
[1743656505413,5.93468372,1837.3,1837.2,0.54932874]
[1743656505712,0.87096,1837.2,1837.1,3.2078]
[1743656505911,2.36266,1837.2,1837.1,3.2078]
[1743656506615,1.4917,1837.2,1837.1,3.2078]
[1743656506811,1.4917,1837.2,1837.1,4.0788]
[1743656507011,1.4917,1837.2,1837.1,4.62853524]
[1743656508111,1.4917,1837.2,1837.1,6.71186971]
[1743656508921,1.4917,1837.2,1837.1,6.71251246]
[1743656512424,1.4917,1837.2,1837.1,4.46971246]
[1743656513322,1.4917,1837.2,1837.1,3.75817799]
[1743656513522,2.36266,1837.2,1837.1,3.75817799]
[1743656514522,0.87103,1837.1,1836.9,3.2078]
[1743656514820,3.04223,1837.1,1837.0,0.55065716]
[1743656515026,6.72423,1837.1,1837.0,0.55065716]
[1743656515524,5.8532,1837.1,1837.0,0.55065716]
[1743656515723,6.7242,1837.1,1837.0,0.55065716]
[1743656516320,0.87105,1837.0,1836.9,3.2078]
[1743656516521,2.32745,1837.0,1836.9,3.2078]
[1743656516723,0.87118,1836.8,1836.5,6.99176]
[1743656516923,0.87119,1836.7,1836.6,0.55058553]
[1743656517227,0.87119,1836.7,1836.6,1.26314614]
[1743656517228,3.02979,1836.7,1836.6,1.26314614]
[1743656517429,2.1586,1836.7,1836.6,1.26292308]
[1743656517627,2.1586,1836.7,1836.6,0.55036247]
[1743656518129,3.02979,1836.7,1836.6,0.55036247]
[1743656518423,3.02979,1836.7,1836.5,3.2078]
[1743656518724,2.34384,1836.6,1836.5,3.2078]
[1743656518930,1.4726,1836.6,1836.5,3.75790803]
[1743656520135,1.4726,1836.6,1836.5,3.75769353]
[1743656520931,2.34384,1836.6,1836.5,3.75769353]
[1743656521139,2.34384,1836.6,1836.5,3.2078]
[1743656524934,2.34384,1836.6,1836.3,1.61166]
[1743656525233,5.0904,1836.5,1836.3,1.61166]
[1743656525432,5.0904,1836.5,1836.3,2.98126]
[1743656525628,5.0904,1836.5,1836.4,0.87133]
[1743656525934,3.682,1836.8,1836.6,0.87124]
[1743656526136,4.55315,1836.8,1836.6,0.87124]
[1743656526330,1.4991,1836.7,1836.6,0.87124]
[1743656526536,1.4991,1836.7,1836.6,1.58474]
[1743656526736,1.4991,1836.7,1836.6,2.97174]
[1743656526942,3.682,1837.0,1836.8,0.87113]
[1743656527135,3.682,1837.0,1836.7,2.25816]
[1743656527437,0.87114,1836.8,1836.7,1.387]
[1743656527736,2.37023,1836.9,1836.7,1.387]
[1743656527931,0.6969,1836.8,1836.7,1.387]
[1743656528234,2.196,1836.8,1836.7,2.25819]
[1743656529636,1.4991,1836.8,1836.7,2.25819]
[1743656529840,0.7182,1836.9,1836.7,1.387]
[1743656529841,3.682,1836.9,1836.7,1.387]
[1743656530040,3.682,1836.9,1836.8,0.8711]
[1743656530340,3.682,1836.9,1836.7,2.25816]
[1743656530934,3.682,1836.9,1836.8,1.4522]
[1743656531142,3.682,1836.9,1836.8,2.32334]
[1743656531340,3.682,1836.9,1836.8,6.07993554]
[1743656531549,3.682,1837.2,1837.1,0.87098]
[1743656531754,3.682,1837.2,1837.1,4.07878]
[1743656531941,0.00817372,1837.3,1837.2,0.87096]
[1743656532244,0.00817372,1837.3,1837.2,1.58536]
[1743656532544,0.00817372,1837.3,1837.2,2.13384079]
[1743656533344,0.00817372,1837.3,1837.2,2.84330912]
[1743656533649,0.87065,1837.9,1837.2,4.47234912]
[1743656533838,3.681,1837.8,1837.6,3.2078]
[1743656534034,3.681,1837.8,1837.7,0.7144]
[1743656534246,5.1298,1837.8,1837.7,0.7144]
[1743656535251,6.00047,1837.8,1837.7,0.7144]
[1743656536651,0.87072,1837.7,1837.6,3.21597372]
[1743656536852,2.28692,1837.7,1837.6,3.21597372]
[1743656537044,3.72202,1837.7,1837.6,3.21597372]
[1743656537652,2.8513,1837.7,1837.6,3.21597372]
[1743656537847,1.4162,1837.7,1837.6,3.21597372]
[1743656538149,3.681,1837.8,1837.6,4.08674372]
[1743656538451,5.16,1837.8,1837.6,4.08674372]
[1743656538845,1.479,1837.7,1837.6,3.21597372]
[1743656539251,1.479,1837.7,1837.6,3.92797372]
[1743656539451,1.479,1837.7,1837.6,4.79874372]
[1743656540947,1.479,1837.7,1837.6,3.92797372]
[1743656541454,1.479,1837.7,1837.6,4.79874372]
[1743656542156,1.479,1837.7,1837.6,3.92797372]
[1743656543552,0.00817372,1837.9,1837.7,0.87072]
[1743656543852,0.00817372,1837.9,1837.8,0.7365]
[1743656544056,0.00817372,1837.9,1837.8,1.60717]
[1743656544659,0.00817372,1837.9,1837.8,0.7365]
[1743656545059,1.50157372,1837.9,1837.8,0.7365]
[1743656545266,1.50157372,1837.9,1837.8,3.9443]
[1743656545558,0.00817372,1837.9,1837.8,4.81497]
[1743656546047,8.13956,1838.8,1837.8,4.81497]
[1743656546048,3.2078,1838.8,1837.9,2.17657]
[1743656546252,5.896,1838.7,1838.5,4.07813]
[1743656546666,5.1724,1838.7,1838.6,0.734]
[1743656546956,1.4934,1838.7,1838.6,1.60429]
[1743656547157,0.7,1839.2,1838.8,0.87018]
[1743656547363,1.4523,1839.1,1839.0,0.8701]
[1743656547852,1.4523,1839.1,1838.9,3.21597372]
[1743656548356,0.00817372,1839.2,1838.9,4.08608372]
[1743656548858,1.46047372,1839.2,1838.9,4.08608372]
[1743656549670,1.46047372,1839.2,1839.0,1.3763]
[1743656549856,2.33049372,1839.2,1839.0,1.3763]
[1743656550166,2.33049372,1839.2,1838.9,4.08612372]
[1743656550357,1.46047372,1839.2,1838.9,5.56082372]
[1743656550556,1.46047372,1839.2,1839.1,3.2078]
[1743656550961,0.00817372,1839.2,1839.1,4.6825]
[1743656551163,0.00817372,1839.2,1839.1,5.55256]
[1743656551951,0.00817372,1839.2,1839.1,4.6825]
[1743656552958,2.25758372,1839.2,1838.9,3.21597372]
[1743656553163,0.87007,1839.1,1838.9,3.21597372]
[1743656553465,1.3794,1839.0,1838.9,3.21597372]
[1743656553962,2.2495,1839.0,1838.9,0.00817372]
[1743656554267,3.6833,1839.0,1838.9,0.00817372]
[1743656556365,0.87024,1838.8,1838.4,5.54307]
[1743656556566,1.4706,1838.7,1838.4,5.54307]
[1743656556960,1.4706,1838.7,1838.4,3.2078]
[1743656557166,0.87034,1838.6,1838.4,3.2078]
[1743656557360,2.34094,1838.5,1838.4,3.2078]
[1743656557668,5.1466,1838.5,1838.4,3.2078]
[1743656558465,0.87039,1838.4,1838.3,0.00817372]
[1743656558664,2.34099,1838.4,1838.3,0.00817372]
[1743656560065,5.54879,1838.4,1838.3,0.00817372]
[1743656560962,1.4706,1838.4,1838.3,3.21597372]
[1743656561163,2.34099,1838.4,1838.3,0.00817372]
[1743656562073,5.54879,1838.4,1838.3,0.00817372]
[1743656565573,4.6784,1838.4,1838.3,0.87860372]
[1743656566165,3.2078,1838.4,1838.3,0.87860372]
[1743656566370,6.8838,1838.4,1838.3,0.87860372]
[1743656567868,7.75419,1838.4,1838.3,0.00817372]
[1743656572285,4.07819,1838.4,1838.3,0.00817372]
[1743656572581,3.2078,1838.4,1838.3,0.00817372]
[1743656572782,6.8838,1838.4,1838.3,0.00817372]
[1743656573076,5.1002,1838.4,1838.3,0.87860372]
[1743656573475,5.1002,1838.4,1838.3,0.00817372]
[1743656573774,5.97059,1838.4,1838.3,0.00817372]
[1743656575480,5.1002,1838.4,1838.3,0.00817372]
[1743656576384,5.97059,1838.4,1838.3,0.00817372]
[1743656581084,6.68399,1838.4,1838.3,0.00817372]
[1743656582182,5.97059,1838.4,1838.3,0.00817372]
[1743656582587,5.97059,1838.4,1838.3,1.45357372]
[1743656583478,5.97059,1838.4,1838.3,0.00817372]
[1743656585789,5.97059,1838.4,1837.6,6.69473]
[1743656585790,0.87065,1837.9,1837.6,6.69473]
[1743656586087,0.87067,1837.8,1837.7,2.12222802]
[1743656586286,2.28037,1837.8,1837.7,0.71042802]
[1743656586688,2.28037,1837.8,1837.6,1.4118]
[1743656586881,2.28972,1837.7,1837.6,0.00817372]
[1743656591895,0.87097,1837.2,1836.9,5.56128]
[1743656592194,4.54697,1837.2,1836.9,7.05728]
[1743656592382,1.4615,1837.1,1837.0,1.496]
[1743656599794,1.4615,1837.1,1836.9,2.36165372]
[1743656601605,1.4615,1837.1,1837.0,1.4901]
[1743656602709,1.4615,1837.1,1836.9,0.00817372]
[1743656602915,0.87105,1837.0,1836.9,0.00817372]
[1743656603512,1.4615,1837.1,1836.9,0.00817372]
[1743656603711,3.676,1837.2,1837.0,4.07882]
[1743656603913,5.1201,1837.2,1837.1,1.4784]
[1743656604515,5.1201,1837.2,1837.1,2.3494]
[1743656604823,5.1201,1837.2,1837.1,1.4784]
[1743656605015,5.1201,1837.2,1837.1,2.3494]
[1743656605217,5.1201,1837.2,1837.1,1.4784]
[1743656606523,5.99106,1837.2,1837.1,1.4784]
[1743656607212,5.99106,1837.2,1837.0,4.597]
[1743656607414,1.4068,1837.1,1837.0,4.597]
[1743656608016,1.4068,1837.1,1837.0,6.85105]
[1743656609419,0.87096,1837.2,1837.0,6.85105]
[1743656609622,3.676,1837.5,1837.1,1.4294]
[1743656609813,3.676,1837.4,1837.3,0.87091]
[1743656610013,3.676,1837.4,1837.3,2.30031]
[1743656610615,3.676,1837.4,1837.0,4.597]
[1743656610819,2.27831,1837.3,1837.1,2.30039]
[1743656611019,1.4074,1837.2,1837.1,2.30039]
[1743656611325,2.27836,1837.2,1837.0,4.597]
[1743656611625,3.676,1837.1,1837.0,3.2078]
[1743656611925,5.18,1837.1,1837.0,3.2078]
[1743656612222,5.18,1837.1,1837.0,5.46935]
[1743656612524,0.87079,1837.6,1837.0,7.64674836]
[1743656612822,3.676,1837.5,1837.3,0.87087]
[1743656613016,3.676,1837.5,1837.4,1.3905]
[1743656613223,5.18,1837.5,1837.4,2.26136]
[1743656613422,3.676,1837.5,1837.4,2.26136]
[1743656613620,3.2078,1837.7,1837.4,4.5983]
[1743656613621,1.504,1837.7,1837.4,4.5983]
[1743656613821,3.68417372,1837.9,1837.7,0.87071]
[1743656614225,5.18817372,1837.9,1837.8,1.3905]
[1743656616424,0.8707,1837.8,1837.6,3.2078]
[1743656616624,0.87072,1837.7,1837.6,3.2078]
[1743656617019,1.60032,1837.7,1837.6,3.2078]
[1743656619129,0.00817372,1837.9,1837.6,3.2078]
[1743656619431,0.00817372,1837.9,1837.8,4.07847]
[1743656619626,1.38857372,1837.9,1837.8,4.07847]
[1743656619827,0.00817372,1837.9,1837.8,4.07847]
[1743656621025,0.00817372,1837.9,1837.8,4.62710561]
[1743656621228,0.00817372,1837.9,1837.8,4.07847]
[1743656621428,0.00817372,1837.9,1837.8,4.62682531]
[1743656622032,0.00817372,1837.9,1837.8,4.62678659]
[1743656622234,0.00817372,1837.9,1837.8,5.33623]
[1743656622836,0.00817372,1837.9,1837.8,4.62678659]
[1743656624131,0.00817372,1837.9,1837.8,5.33548811]
[1743656624327,0.00817372,1837.9,1837.8,7.83548811]
[1743656624633,3.674,1838.3,1838.1,0.87052]
[1743656624935,5.1377,1838.3,1838.1,0.87052]
[1743656625828,5.1377,1838.3,1838.1,2.31842]
[1743656626025,1.4637,1838.2,1838.1,2.31842]
[1743656632542,1.4637,1838.2,1838.1,1.4479]
[1743656632843,2.33418,1838.2,1838.0,0.00817372]
[1743656633138,0.87053,1838.1,1838.0,0.00817372]
[1743656633445,3.02613,1838.1,1838.0,0.00817372]
[1743656633841,0.87065,1837.9,1837.6,9.90254]
[1743656634037,0.7098,1837.8,1837.6,4.07854]
[1743656634343,2.1611,1837.8,1837.6,4.07854]
[1743656634739,1.4513,1837.7,1837.6,4.07854]
[1743656637041,0.7098,1837.8,1837.7,0.87072]
[1743656637243,1.4747,1837.9,1837.8,0.87067]
[1743656637548,3.673,1838.1,1837.9,0.87062]
[1743656637738,5.1477,1838.1,1837.9,0.87062]
[1743656638050,5.1477,1838.1,1837.9,2.34472]
[1743656639247,1.5146,1838.0,1837.9,1.4741]
[1743656639544,1.5146,1838.0,1837.8,4.78324]
[1743656639747,2.3852,1838.0,1837.8,3.2078]
[1743656639949,2.3852,1838.0,1837.8,4.07847]
[1743656640143,1.5146,1837.9,1837.8,4.07847]
[1743656640547,1.5146,1837.9,1837.8,3.2078]
[1743656641049,1.5146,1837.9,1837.8,5.56217]
[1743656641254,1.5146,1837.9,1837.8,6.11058467]
[1743656641748,0.7404,1838.2,1838.1,0.87053]
[1743656641944,5.8457,1838.3,1838.2,0.87048]
[1743656642648,1.4197,1838.3,1838.2,1.41924951]
[1743656642949,3.68117372,1838.4,1838.3,0.87043]
[1743656643149,1.42787372,1838.4,1838.3,4.62697621]
[1743656643455,1.42787372,1838.4,1838.3,6.13187621]
[1743656644038,1.42787372,1838.4,1838.3,5.58313]
[1743656644246,1.42787372,1838.4,1838.3,6.13173235]
[1743656644451,1.42787372,1838.4,1838.3,3.2078]
[1743656644648,1.42787372,1838.4,1838.3,4.07823]
[1743656644854,0.00817372,1838.4,1838.3,4.62687576]
[1743656645149,3.2078,1839.1,1838.7,0.8702]
[1743656645150,6.6357,1838.9,1838.7,0.8702]
[1743656645358,6.6357,1838.9,1838.7,4.078]
[1743656645552,6.6357,1838.9,1838.8,0.8702]
[1743656645553,2.9637,1838.9,1838.8,0.8702]
[1743656645852,3.672,1839.0,1838.9,0.87012]
[1743656646156,3.672,1839.0,1838.9,2.94702]
[1743656646350,0.00817372,1839.1,1838.9,6.15482]
[1743656646552,1.51737372,1839.1,1838.9,5.2847]
[1743656646749,0.00817372,1839.1,1839.0,1.41736549]
[1743656646951,0.00817372,1839.1,1839.0,2.81066549]
[1743656647451,3.2078,1839.9,1839.3,0.86994]
[1743656647654,1.5092,1839.6,1839.3,4.07774]
[1743656648245,2.37902,1839.6,1839.3,4.07774]
[1743656648451,1.5092,1839.6,1839.3,4.07774]
[1743656648649,1.51737372,1839.6,1839.3,4.07774]
[1743656654853,1.51737372,1839.6,1839.3,3.2078]
[1743656655049,1.51737372,1839.6,1839.4,3.02597]
[1743656655451,1.51737372,1839.6,1839.4,2.1561]
[1743656655751,1.51737372,1839.6,1839.5,4.07767]
[1743656655947,1.51737372,1839.6,1839.5,5.53557]
[1743656656149,3.2078,1840.1,1839.8,0.86969]
[1743656656353,2.17308,1840.9,1840.1,0.02741632]
[1743656656354,1.4264,1840.2,1840.1,0.02741632]
[1743656656554,4.53954,1840.2,1840.1,0.02741632]
[1743656656755,4.53954,1840.2,1840.0,3.2078]
[1743656656756,0.86958,1840.1,1840.0,3.2078]
[1743656656955,2.27706368,1840.1,1840.0,3.2078]
[1743656657559,1.4349,1840.1,1840.0,3.2078]
[1743656657959,1.4349,1840.1,1839.9,0.00815129]
[1743656658664,2.3045,1840.1,1839.9,0.00815129]
[1743656658864,0.86963,1840.0,1839.9,0.00815129]
[1743656662163,0.8698,1839.7,1839.4,4.07769]
[1743656662360,0.7547,1839.6,1839.4,4.05027368]
[1743656662555,0.7547,1839.6,1839.4,4.07769]
[1743656664468,3.2078,1839.9,1839.4,3.2078]
[1743656664668,3.668,1839.8,1839.6,0.8698]
[1743656665369,0.86985,1839.6,1839.4,3.2078]
[1743656665965,4.53787,1839.5,1839.4,3.2078]
[1743656666168,4.53787,1839.5,1839.3,0.00815129]
[1743656666374,4.53787,1839.5,1839.3,0.87810129]
[1743656666575,4.53787,1839.5,1839.3,0.00815129]
[1743656667467,3.668,1839.5,1839.3,0.00815129]
[1743656667670,3.668,1839.5,1839.4,0.86991]
[1743656668173,3.668,1839.5,1839.4,2.34301]
[1743656668577,3.668,1839.5,1839.4,1.4731]
[1743656669677,5.1773,1839.5,1839.3,0.00815129]
[1743656669976,2.37921,1839.4,1839.3,0.00815129]
[1743656673575,1.5093,1839.4,1839.3,0.87811129]
[1743656673975,1.5093,1839.4,1839.3,0.00815129]
[1743656674377,2.37921,1839.4,1839.3,0.00815129]
[1743656677479,0.8701,1839.0,1838.9,3.2078]
[1743656677677,4.5381,1839.0,1838.9,3.2078]
[1743656678575,5.9268,1839.0,1838.9,3.2078]
[1743656680572,5.0567,1839.0,1838.9,4.07795]
[1743656680780,5.0567,1839.0,1838.9,4.62524012]
[1743656680781,3.668,1839.0,1838.9,4.62524012]
[1743656681078,0.00815129,1839.1,1839.0,0.8701]
[1743656681283,0.00815129,1839.1,1839.0,2.992]
[1743656681478,1.37505129,1839.1,1839.0,2.992]
[1743656693390,2.24511129,1839.1,1839.0,2.1219]
[1743656694395,1.37505129,1839.1,1839.0,2.1219]
[1743656694587,1.37505129,1839.1,1839.0,2.67036611]
[1743656694985,1.37505129,1839.1,1839.0,0.7279]
[1743656695497,1.37505129,1839.1,1839.0,2.14671697]
[1743656695688,1.37505129,1839.1,1839.0,1.27661697]
[1743656695884,2.24511129,1839.1,1839.0,1.27661697]
[1743656696086,2.24511129,1839.1,1838.9,0.7008]
[1743656696284,1.4701,1839.0,1838.9,0.7008]
[1743656696485,1.4701,1839.0,1838.9,0.54889811]
[1743656696486,2.3402,1839.0,1838.9,0.54889811]
[1743656697691,0.87015,1838.9,1838.8,0.00815129]
[1743656697892,6.72455,1838.9,1838.8,0.55712984]
[1743656699491,5.8544,1838.9,1838.8,0.55733534]
[1743656700090,0.00815129,1839.1,1839.0,0.8701]
[1743656700295,3.67615129,1839.1,1839.0,1.41917332]
[1743656700587,5.09525129,1839.1,1839.0,3.50997825]
[1743656700788,5.09525129,1839.1,1839.0,2.63987825]